fUST/lending_fUST_20260426
["ID","MTS","AMOUNT","RATE_DAILY","PERIOD"]
[421174092,1777204239611,-500.0,0.00015398,2]
[421174093,1777204239621,-500.0,0.00015398,2]
[421174094,1777204239630,-500.0,0.00015398,2]
[421174095,1777204239640,-500.0,0.00015398,2]
[421174096,1777204239650,-500.0,0.00015398,2]
[421174097,1777204239660,-500.0,0.00015398,2]
[421174098,1777204239669,-46.78135936,0.00015398,2]
[421174113,1777204247917,-5000.0,7.188e-05,2]
[421174114,1777204247926,-191.89986126,7.261e-05,2]
[421174115,1777204247935,-226.44183629,9.261e-05,2]
[421174116,1777204247944,-260.98381131,0.00011261,2]
[421174117,1777204247953,-295.52578634,0.00013261,2]
[421174118,1777204247963,-330.06776137,0.00015261,2]
[421174119,1777204247972,-453.21864064,0.00015398,2]
[421174120,1777204247982,-500.0,0.00015398,2]
[421174121,1777204247991,-500.0,0.00015398,2]
[421174122,1777204248001,-263.32446588,0.00015398,2]
[421174123,1777204248011,-523.75019799,0.00015398,2]
[421174124,1777204248020,-500.0,0.00015398,2]
[421174125,1777204248029,-600.44127638,0.00015398,2]
[421174126,1777204248039,-17.60766643,0.00015398,2]
[421174127,1777204248050,-482.39233357,0.00015398,2]
[421174128,1777204248060,-500.0,0.00015398,2]
[421174129,1777204248070,-500.0,0.00015398,2]
[421174131,1777204248079,-500.0,0.00015398,2]
[421174133,1777204248089,-177.60766643,0.00015398,2]
[421174135,1777204248100,-322.39233357,0.00015398,2]
[421174137,1777204248109,-243.05766643,0.00015398,2]
[421174139,1777204248121,-256.94233357,0.00015398,2]
[421174141,1777204248131,-186.05766643,0.00015398,2]
[421174253,1777205431707,-2751.07633631,0.00012389,2]
[421174403,1777205438296,-1157.11780783,0.00012389,2]
[421174450,1777205440578,-850.2907409,0.00012389,2]
[421174677,1777205443015,-241.51511496,0.00012389,2]
[421174678,1777205443025,-1361.05916015,0.00012514,2]
[421174747,1777206112744,231.9,0.00011,30]
[421174852,1777206638251,-3327.02213441,0.00010883,2]
[421174854,1777206638261,-573.0,0.00010883,2]
[421174856,1777206638272,-5000.0,0.00010993,2]
[421174858,1777206638285,-209.91823371,0.00011104,2]
[421174860,1777206638295,-171.95925652,0.0001126,2]
[421174862,1777206638305,-1200.0,0.00012677,2]
[421174863,1777206638315,-300.0,0.00012762,2]
[421174865,1777206638324,-300.0,0.00012762,2]
[421174867,1777206638334,-300.0,0.00012763,2]
[421174869,1777206638343,-300.0,0.00012763,2]
[421174871,1777206638353,-300.0,0.00012763,2]
[421174872,1777206638364,-300.0,0.00012763,2]
[421174874,1777206638374,-300.0,0.00012763,2]
[421174876,1777206638384,-300.0,0.00012763,2]
[421174877,1777206638393,-300.0,0.00012763,2]
[421174878,1777206638403,-300.0,0.00012763,2]
[421174879,1777206638413,-300.0,0.00012763,2]
[421174880,1777206638422,-300.0,0.00012763,2]
[421174881,1777206638432,-300.0,0.00012763,2]
[421174882,1777206638441,-300.0,0.00012763,2]
[421174883,1777206638451,-300.0,0.00012763,2]
[421174884,1777206638461,-300.0,0.00012763,2]
[421174885,1777206638470,-300.0,0.00012763,2]
[421174886,1777206638480,-152.0,0.00012996,7]
[421174887,1777206638490,-600.0,0.00013017,2]
[421174888,1777206638499,-152.0,0.00013035,7]
[421174890,1777206638508,-202.91192269,0.0001326,2]
[421174892,1777206638517,-151.3566208,0.00013654,2]
[421174893,1777206638527,-1000.0,0.00013699,2]
[421174894,1777206638536,-300.0,0.00013999,2]
[421174895,1777206638545,-720.0,0.00014319,2]
[421174896,1777206638555,-325.4780488,0.00014473,2]
[421174897,1777206638564,-325.050611,0.00014473,2]
[421174898,1777206638574,-362.75192205,0.00014898,2]
[421174899,1777206638584,-391.07441722,0.00014898,2]
[421174900,1777206638593,-500.0,0.00014898,2]
[421174901,1777206638602,-502.63891089,0.00014898,2]
[421174902,1777206638611,-500.0,0.00014898,2]
[421174903,1777206638620,-500.0,0.00014898,2]
[421174904,1777206638630,-500.0,0.00014898,2]
[421174905,1777206638639,-307.03605176,0.00014898,2]
[421174906,1777206638648,-500.0,0.00014898,2]
[421174907,1777206638658,-500.0,0.00014898,2]
[421174908,1777206638668,-500.0,0.00014898,2]
[421174909,1777206638677,-500.0,0.00014898,2]
[421174910,1777206638688,-500.0,0.00014898,2]
[421174911,1777206638697,-500.0,0.00014898,2]
[421174912,1777206638706,-500.0,0.00014898,2]
[421174913,1777206638716,-500.0,0.00014898,2]
[421174914,1777206638725,-500.0,0.00014898,2]
[421174915,1777206638734,-500.0,0.00014898,2]
[421174916,1777206638743,-373.69810021,0.00014898,2]
[421174917,1777206638753,-500.0,0.00014898,2]
[421174918,1777206638762,-500.0,0.00014898,2]
[421174919,1777206638772,-310.04412764,0.00014898,2]
[421174920,1777206638781,-500.0,0.00014898,2]
[421174921,1777206638790,-35308.07806259,0.00014899,2]
[421174922,1777206638807,-189702.61794846,0.00014899,2]
[421174923,1777206638818,-12058.0,0.00014899,2]
[421174924,1777206638848,-40863.132928,0.00014899,2]
[421174925,1777206638860,-1606.21430733,0.00014899,2]
[421174946,1777206643405,-1109.36231192,0.00014899,2]
[421174989,1777206646311,-4920.53261033,0.00014899,2]
[421175017,1777206646581,-1023.7527171,0.00014899,2]
[421175162,1777206725178,1000.0,0.00013699,2]
[421175184,1777207832277,-1870.8532736,0.00012869,2]
[421175194,1777207832383,-3129.1467264,0.00012869,2]
[421175196,1777207832393,-602.0,0.00012869,2]
[421175198,1777207832402,-300.0,0.00012999,2]
[421175200,1777207832411,-562.0,0.00012999,2]
[421175202,1777207832422,-300.0,0.00012999,2]
[421175204,1777207832431,-300.0,0.00012999,2]
[421175206,1777207832441,-300.0,0.00012999,2]
[421175207,1777207832450,-300.0,0.00012999,2]
[421175208,1777207832459,-1200.0,0.00012999,2]
[421175209,1777207832468,-184.17680503,0.00013,2]
[421175210,1777207832479,-6036.23731309,0.00013,2]
[421175216,1777207838742,-1864.11663286,0.00013,2]
[421175217,1777207838796,-16489.59605405,0.00013,2]
[421175218,1777207838805,-9439.53445636,0.00013699,2]
[421175219,1777207838815,-1282.0,0.00013699,2]
[421175220,1777207838824,-1000.0,0.00013699,2]
[421175221,1777207838834,-300.0,0.00013832,2]
[421175222,1777207838843,-300.0,0.00013832,2]
[421175223,1777207838853,-300.0,0.00013832,2]
[421175224,1777207838862,-300.0,0.00013832,2]
[421175225,1777207838871,-300.0,0.00013832,2]
[421175226,1777207838880,-300.0,0.00013832,2]
[421175227,1777207838889,-300.0,0.00013832,2]
[421175228,1777207838898,-300.0,0.00013832,2]
[421175229,1777207838908,-300.0,0.00013832,2]
[421175230,1777207838918,-300.0,0.00013832,2]
[421175231,1777207838928,-300.0,0.00013832,2]
[421175232,1777207838937,-300.0,0.00013832,2]
[421175233,1777207838946,-300.0,0.00013832,2]
[421175234,1777207838956,-300.0,0.00013832,2]
[421175235,1777207838965,-300.0,0.00013832,2]
[421175236,1777207838975,-1282.0,0.00013973,2]
[421175237,1777207838984,-600.0,0.00014108,2]
[421175238,1777207838993,-1282.0,0.00014247,2]
[421175239,1777207839003,-300.0,0.00014256,2]
[421175240,1777207839012,-420.0,0.00014256,2]
[421175241,1777207839021,-411.0,0.00014256,2]
[421175242,1777207839030,-1282.0,0.00014521,2]
[421175243,1777207839039,-201.96811987,0.00014597,2]
[421175244,1777207839049,-724.95137517,0.00014597,2]
[421175245,1777207839058,-111618.57816025,0.00014598,2]
[421175257,1777207840868,-5942.315606,0.00014598,2]
[421175272,1777207843941,-1352.99176546,0.00014598,2]
[421175282,1777207846922,-22309.32889199,0.00014598,2]
[421175287,1777208780127,-172.58116336,0.00018533,120]
[421175288,1777208780162,-200.0,0.00019077,120]
[421175289,1777208780245,-252.51017766,0.00019442,120]
[421175290,1777208780333,-203.56480363,0.00019747,120]
[421175291,1777208780365,-300000.0,0.00019786,120]
[421175292,1777208780397,-200.0,0.00019876,120]
[421175293,1777208780459,-1444.0,0.00020329,120]
[421175294,1777208780505,-200.0,0.0002065,120]
[421175295,1777208780554,-200.0,0.00021008,120]
[421175296,1777208780601,-200.0,0.00021229,120]
[421175297,1777208780658,-200.0,0.00021665,120]
[421175298,1777208780701,-22951.05474794,0.00022,120]
[421175299,1777208780731,-500.0,0.00022,120]
[421175300,1777208780761,-147823.08393294,0.00022,120]
[421175301,1777208780792,-27074.66613917,0.00022,120]
[421175302,1777208780824,-200.0,0.00022126,120]
[421175303,1777208780866,-200.0,0.00022339,120]
[421175304,1777208780934,-2191.14888149,0.00023291,120]
[421175305,1777208780974,-1444.0,0.00023781,120]
[421175306,1777208781003,-500000.0,0.00023786,120]
[421175307,1777208781034,-200.0,0.00023823,120]
[421175308,1777208781092,-200.0,0.00024471,120]
[421175309,1777208781124,-155252.95397774,0.0002465,120]
[421175310,1777208790418,-796.0,0.00025291,120]
[421175311,1777208790447,-1459.65621032,0.00025291,120]
[421175312,1777208790476,-240.84692682,0.00025291,120]
[421175313,1777208790504,-294.19360989,0.00025291,120]
[421175314,1777208790533,-663.73973133,0.00025291,120]
[421175315,1777208790563,-284.43625222,0.00025291,120]
[421175316,1777208790591,-1034.86002668,0.00025291,120]
[421175317,1777208790620,-982.30239615,0.00025291,120]
[421175318,1777208790648,-342.55625562,0.00025291,120]
[421175319,1777208790677,-564.01642457,0.00025291,120]
[421175320,1777208790706,-741.52645576,0.00025291,120]
[421175321,1777208790735,-1080.98675496,0.00025291,120]
[421175322,1777208790763,-230.7861991,0.00025291,120]
[421175323,1777208790791,-560.05721748,0.00025291,120]
[421175324,1777208790820,-650.50227951,0.00025291,120]
[421175325,1777208790850,-338.61326659,0.00025291,120]
[421175326,1777208790879,-585.26020503,0.00025291,120]
[421175327,1777208790908,-1110.61230054,0.00025291,120]
[421175328,1777208790936,-308.7616432,0.00025291,120]
[421175329,1777208790965,-216.03930391,0.00025291,120]
[421175330,1777208790995,-1065.32599884,0.00025291,120]
[421175331,1777208791024,-228.91511386,0.00025291,120]
[421175332,1777208791053,-235.61448019,0.00025291,120]
[421175333,1777208791082,-378.37009867,0.00025291,120]
[421175334,1777208791111,-368.06919473,0.00025291,120]
[421175335,1777208791140,-182.35370169,0.00025291,120]
[421175336,1777208791170,-521.74260369,0.00025291,120]
[421175337,1777208791198,-581.32659785,0.00025291,120]
[421175338,1777208791226,-204.43862997,0.00025291,120]
[421175339,1777208791256,-167.19580701,0.00025291,120]
[421175340,1777208791284,-503.66132324,0.00025291,120]
[421175341,1777208791313,-323.50068699,0.00025291,120]
[421175342,1777208791342,-200.0,0.00025291,120]
[421175343,1777208791371,-163.08348211,0.00025291,120]
[421175344,1777208791400,-1001.50494993,0.00025291,120]
[421175345,1777208791428,-981.84996195,0.00025291,120]
[421175346,1777208791456,-679.75912952,0.00025291,120]
[421175347,1777208791485,-363.85846389,0.00025291,120]
[421175348,1777208791515,-180.80286213,0.00025291,120]
[421175349,1777208791545,-500.0,0.00025291,120]
[421175350,1777208791576,-500.0,0.00025291,120]
[421175351,1777208791606,-3000.0,0.00025291,120]
[421175352,1777208791636,-1396.7749058,0.00025291,120]
[421175353,1777208791665,-2294.88881319,0.00025291,120]
[421175354,1777208791695,-1318.79500801,0.00025291,120]
[421175355,1777208791726,-1186.15681164,0.00025291,120]
[421175356,1777208791756,-1463.73262782,0.00025291,120]
[421175357,1777208791786,-1544.54157257,0.00025291,120]
[421175358,1777208791817,-1997.58315574,0.00025291,120]
[421175359,1777208791847,-1619.00108634,0.00025291,120]
[421175360,1777208791877,-1849.15291569,0.00025291,120]
[421175361,1777208791907,-2137.74747339,0.00025291,120]
[421175362,1777208791938,-602.8743,0.00025291,120]
[421175363,1777208791969,-602.8743,0.00025291,120]
[421175364,1777208792000,-602.8743,0.00025291,120]
[421175365,1777208792029,-602.8743,0.00025291,120]
[421175366,1777208792061,-602.8743,0.00025291,120]
[421175367,1777208792092,-602.8743,0.00025291,120]
[421175368,1777208792124,-602.8743,0.00025291,120]
[421175369,1777208792154,-602.8743,0.00025291,120]
[421175370,1777208792185,-1885.85226323,0.00025291,120]
[421175371,1777208792215,-2702.42119535,0.00025291,120]
[421175372,1777208792245,-2093.25184689,0.00025291,120]
[421175373,1777208792276,-1237.14909818,0.00025291,120]
[421175374,1777208792306,-1128.60224035,0.00025291,120]
[421175375,1777208792337,-2000.0,0.00025291,120]
[421175376,1777208792368,-4338.12849589,0.00025291,120]
[421175377,1777208792400,-500.0,0.00025291,120]
[421175378,1777208792431,-2603.82,0.00025291,120]
[421175379,1777208792462,-500.44925337,0.00025291,120]
[421175380,1777208792492,-491.51220716,0.00025291,120]
[421175381,1777208792523,-245.75,0.00025291,120]
[421175382,1777208792557,-8888.88,0.00025291,120]
[421175383,1777208792589,-8888.88,0.00025291,120]
[421175384,1777208792620,-8888.88,0.00025291,120]
[421175385,1777208792652,-8888.88,0.00025291,120]
[421175386,1777208792684,-8888.88,0.00025291,120]
[421175387,1777208792717,-8888.88,0.00025291,120]
[421175388,1777208792749,-8888.88,0.00025291,120]
[421175389,1777208792780,-8888.88,0.00025291,120]
[421175390,1777208792814,-8888.88,0.00025291,120]
[421175391,1777208792847,-8888.88,0.00025291,120]
[421175392,1777208792879,-8888.88,0.00025291,120]
[421175393,1777208792910,-8888.88,0.00025291,120]
[421175394,1777208792941,-8888.88,0.00025291,120]
[421175395,1777208792972,-8888.88,0.00025291,120]
[421175396,1777208793003,-8888.88,0.00025291,120]
[421175397,1777208793034,-8888.88,0.00025291,120]
[421175398,1777208793066,-8888.88,0.00025291,120]
[421175399,1777208793098,-8889.04,0.00025291,120]
[421175400,1777208793130,-4520.5,0.00025291,120]
[421175401,1777208793161,-494.34,0.00025291,120]
[421175402,1777208793193,-100000.0,0.00025291,120]
[421175403,1777208793224,-100000.0,0.00025291,120]
[421175404,1777208793255,-2057.95,0.00025291,120]
[421175405,1777208793287,-281.32,0.00025291,120]
[421175406,1777208793319,-256.3329547,0.00025291,120]
[421175407,1777208793348,-180.52921689,0.00025291,120]
[421175408,1777208793379,-8880.06,0.00025291,120]
[421175409,1777208793409,-300.0,0.00025291,120]
[421175410,1777208793440,-2500.0,0.00025291,120]
[421175411,1777208793471,-320.0,0.00025291,120]
[421175412,1777208793502,-285.81,0.00025291,120]
[421175413,1777208793532,-600.41064175,0.00025291,120]
[421175414,1777208793564,-8507.09,0.00025291,120]
[421175415,1777208793595,-1683.14824762,0.00025291,120]
[421175416,1777208793624,-256.4136558,0.00025291,120]
[421175417,1777208793654,-478252.73672259,0.00025291,120]
[421175418,1777208793684,-650.95,0.00025291,120]
[421175419,1777208793714,-601.26701574,0.00025291,120]
[421175420,1777208793745,-5333.33,0.00025291,120]
[421175421,1777208793775,-5333.33,0.00025291,120]
[421175422,1777208793806,-5333.33,0.00025291,120]
[421175423,1777208793837,-5333.33,0.00025291,120]
[421175424,1777208793869,-5333.33,0.00025291,120]
[421175425,1777208793902,-5333.35,0.00025291,120]
[421175426,1777208793934,-307.05,0.00025291,120]
[421175427,1777208793964,-600.8,0.00025291,120]
[421175428,1777208793995,-600.8,0.00025291,120]
[421175429,1777208794037,-600.8,0.00025291,120]
[421175430,1777208794068,-600.8,0.00025291,120]
[421175431,1777208794099,-257.63364598,0.00025291,120]
[421175432,1777208794130,-50000.0,0.00025291,120]
[421175433,1777208794161,-284.75556714,0.00025291,120]
[421175434,1777208794192,-274.2660548,0.00025291,120]
[421175435,1777208794223,-172273.4552858,0.00025291,120]
[421175436,1777208794256,-291.81,0.00025291,120]
[421175437,1777208794287,-270.0,0.00025291,120]
[421175438,1777208794320,-151.31225623,0.00025291,120]
[421175439,1777208794351,-1416.90384507,0.00025291,120]
[421175440,1777208794382,-312.21723554,0.00025291,120]
[421175441,1777208794414,-17607.44,0.00025291,120]
[421175442,1777208794448,-445.01286565,0.00025291,120]
[421175443,1777208794480,-220.72485691,0.00025291,120]
[421175444,1777208794512,-445.01286565,0.00025291,120]
[421175445,1777208794543,-220.72485691,0.00025291,120]
[421175446,1777208794575,-220.72485691,0.00025291,120]
[421175447,1777208794608,-445.01286565,0.00025291,120]
[421175448,1777208794640,-220.72485691,0.00025291,120]
[421175449,1777208794674,-445.01286565,0.00025291,120]
[421175450,1777208794707,-220.72485691,0.00025291,120]
[421175451,1777208794740,-445.01286565,0.00025291,120]
[421175452,1777208794771,-220.72485691,0.00025291,120]
[421175453,1777208794804,-445.01286565,0.00025291,120]
[421175454,1777208794837,-445.01286565,0.00025291,120]
[421175455,1777208794873,-220.72485691,0.00025291,120]
[421175456,1777208794906,-445.01286565,0.00025291,120]
[421175457,1777208794942,-220.72485691,0.00025291,120]
[421175458,1777208795195,-445.01286565,0.00025291,120]
[421175459,1777208795228,-445.01286565,0.00025291,120]
[421175460,1777208795261,-445.01286565,0.00025291,120]
[421175461,1777208795302,-445.01286565,0.00025291,120]
[421175462,1777208795336,-445.01286565,0.00025291,120]
[421175463,1777208795368,-445.01286565,0.00025291,120]
[421175464,1777208795400,-222.50643281,0.00025291,120]
[421175465,1777208795431,-222.50643281,0.00025291,120]
[421175466,1777208795460,-151.78649335,0.00025291,120]
[421175467,1777208795491,-393.42570325,0.00025291,120]
[421175468,1777208795521,-293.41158404,0.00025291,120]
[421175469,1777208795551,-351.00038693,0.00025291,120]
[421175470,1777208795583,-227.93264386,0.00025291,120]
[421175471,1777208795613,-393.42570325,0.00025291,120]
[421175472,1777208795644,-293.41158404,0.00025291,120]
[421175473,1777208795676,-351.00038693,0.00025291,120]
[421175474,1777208795706,-393.42570325,0.00025291,120]
[421175475,1777208795736,-227.93264386,0.00025291,120]
[421175476,1777208795767,-351.00038693,0.00025291,120]
[421175477,1777208795797,-393.42570325,0.00025291,120]
[421175478,1777208795827,-227.93264386,0.00025291,120]
[421175479,1777208795859,-351.00038693,0.00025291,120]
[421175480,1777208795889,-393.42570325,0.00025291,120]
[421175481,1777208795919,-227.93264386,0.00025291,120]
[421175482,1777208795949,-351.00038693,0.00025291,120]
[421175483,1777208795979,-393.42570325,0.00025291,120]
[421175484,1777208796009,-227.93264386,0.00025291,120]
[421175485,1777208796040,-351.00038693,0.00025291,120]
[421175486,1777208796071,-393.42570325,0.00025291,120]
[421175487,1777208796100,-227.93264386,0.00025291,120]
[421175488,1777208796131,-351.00038693,0.00025291,120]
[421175489,1777208796162,-393.42570325,0.00025291,120]
[421175490,1777208796192,-227.93264386,0.00025291,120]
[421175491,1777208796223,-393.42570325,0.00025291,120]
[421175492,1777208796252,-393.42570325,0.00025291,120]
[421175493,1777208796283,-393.42570325,0.00025291,120]
[421175494,1777208796313,-393.42570325,0.00025291,120]
[421175495,1777208796344,-393.42570325,0.00025291,120]
[421175496,1777208796374,-393.42570325,0.00025291,120]
[421175497,1777208796406,-393.42570325,0.00025291,120]
[421175498,1777208796436,-227.93264385,0.00025291,120]
[421175499,1777208796469,-175.50019346,0.00025291,120]
[421175500,1777208796501,-293.41158403,0.00025291,120]
[421175501,1777208796532,-236.17063651,0.00025291,120]
[421175502,1777208796563,-176.57988553,0.00025291,120]
[421175503,1777208796595,-154.88256995,0.00025291,120]
[421175504,1777208796626,-198.11595546,0.00025291,120]
[421175505,1777208796657,-198.11595546,0.00025291,120]
[421175506,1777208796688,-154.88256995,0.00025291,120]
[421175507,1777208796719,-176.57988553,0.00025291,120]
[421175508,1777208796750,-198.11595546,0.00025291,120]
[421175509,1777208796780,-154.88256995,0.00025291,120]
[421175510,1777208796812,-154.88256995,0.00025291,120]
[421175511,1777208796844,-198.11595546,0.00025291,120]
[421175512,1777208796886,-198.11595546,0.00025291,120]
[421175513,1777208796918,-154.88256995,0.00025291,120]
[421175514,1777208796951,-198.11595546,0.00025291,120]
[421175515,1777208796985,-154.88256995,0.00025291,120]
[421175516,1777208797018,-198.11595546,0.00025291,120]
[421175517,1777208797052,-198.11595546,0.00025291,120]
[421175518,1777208797087,-154.88256993,0.00025291,120]
[421175519,1777208797121,-169.46179362,0.00025291,120]
[421175520,1777208797152,-150.1919816,0.00025291,120]
[421175521,1777208797184,-169.46179362,0.00025291,120]
[421175522,1777208797220,-169.46179362,0.00025291,120]
[421175523,1777208797251,-260.49445013,0.00025291,120]
[421175524,1777208797284,-269.91621857,0.00025291,120]
[421175525,1777208797316,-157.68700161,0.00025291,120]
[421175526,1777208797350,-270.81454113,0.00025291,120]
[421175527,1777208797383,-184.9648159,0.00025291,120]
[421175528,1777208797418,-231.91082587,0.00025291,120]
[421175529,1777208797451,-329.4619995,0.00025291,120]
[421175530,1777208797483,-270.81454113,0.00025291,120]
[421175531,1777208797516,-329.4619995,0.00025291,120]
[421175532,1777208797550,-329.4619995,0.00025291,120]
[421175533,1777208797583,-270.81454113,0.00025291,120]
[421175534,1777208797615,-329.4619995,0.00025291,120]
[421175535,1777208797648,-270.81454113,0.00025291,120]
[421175536,1777208797680,-329.4619995,0.00025291,120]
[421175537,1777208797712,-270.81454113,0.00025291,120]
[421175538,1777208797744,-329.4619995,0.00025291,120]
[421175539,1777208797777,-270.81454113,0.00025291,120]
[421175540,1777208797809,-329.4619995,0.00025291,120]
[421175541,1777208797842,-270.81454113,0.00025291,120]
[421175542,1777208797875,-329.4619995,0.00025291,120]
[421175543,1777208797912,-270.81454113,0.00025291,120]
[421175544,1777208797946,-329.4619995,0.00025291,120]
[421175545,1777208797978,-329.4619995,0.00025291,120]
[421175546,1777208798012,-329.4619995,0.00025291,120]
[421175547,1777208798044,-329.4619995,0.00025291,120]
[421175548,1777208798076,-329.4619995,0.00025291,120]
[421175549,1777208798108,-329.4619995,0.00025291,120]
[421175550,1777208798140,-329.4619995,0.00025291,120]
[421175551,1777208798172,-175.33346834,0.00025291,120]
[421175552,1777208798203,-153.22998969,0.00025291,120]
[421175553,1777208798235,-150.84083522,0.00025291,120]
[421175554,1777208798265,-175.47040749,0.00025291,120]
[421175555,1777208798298,-175.33346834,0.00025291,120]
[421175556,1777208798329,-150.84083522,0.00025291,120]
[421175557,1777208798358,-153.22998969,0.00025291,120]
[421175558,1777208798389,-175.33346834,0.00025291,120]
[421175559,1777208798420,-153.22998969,0.00025291,120]
[421175560,1777208798451,-150.84083522,0.00025291,120]
[421175561,1777208798489,-150.84083522,0.00025291,120]
[421175562,1777208798526,-175.33346834,0.00025291,120]
[421175563,1777208798559,-175.33346834,0.00025291,120]
[421175564,1777208798593,-150.84083522,0.00025291,120]
[421175565,1777208798629,-150.84083522,0.00025291,120]
[421175566,1777208798672,-150.84083522,0.00025291,120]
[421175567,1777208798711,-150.84083518,0.00025291,120]
[421175568,1777208798748,-231.91082587,0.00025291,120]
[421175569,1777208798783,-192.74819386,0.00025291,120]
[421175570,1777208798818,-495.22670275,0.00025291,120]
[421175571,1777208798854,-194.99977779,0.00025291,120]
[421175572,1777208798889,-495.22670275,0.00025291,120]
[421175573,1777208798924,-495.22670275,0.00025291,120]
[421175574,1777208798959,-495.22670275,0.00025291,120]
[421175575,1777208798998,-495.22670275,0.00025291,120]
[421175576,1777208799036,-495.22670275,0.00025291,120]
[421175577,1777208799076,-345.72026394,0.00025291,120]
[421175578,1777208799114,-299.39150651,0.00025291,120]
[421175579,1777208799147,-246.61244089,0.00025291,120]
[421175580,1777208799179,-345.72026394,0.00025291,120]
[421175581,1777208799215,-299.39150651,0.00025291,120]
[421175582,1777208799251,-345.72026394,0.00025291,120]
[421175583,1777208799287,-299.39150651,0.00025291,120]
[421175584,1777208799325,-345.72026394,0.00025291,120]
[421175585,1777208799360,-299.39150651,0.00025291,120]
[421175586,1777208799396,-345.72026394,0.00025291,120]
[421175587,1777208799429,-299.39150651,0.00025291,120]
[421175588,1777208799461,-345.72026394,0.00025291,120]
[421175589,1777208799496,-299.39150651,0.00025291,120]
[421175590,1777208799529,-345.72026394,0.00025291,120]
[421175591,1777208799563,-299.39150651,0.00025291,120]
[421175592,1777208799597,-345.72026394,0.00025291,120]
[421175593,1777208799630,-299.39150651,0.00025291,120]
[421175594,1777208799665,-345.72026394,0.00025291,120]
[421175595,1777208799702,-345.72026394,0.00025291,120]
[421175596,1777208799737,-345.72026394,0.00025291,120]
[421175597,1777208799771,-345.72026394,0.00025291,120]
[421175598,1777208799805,-345.72026394,0.00025291,120]
[421175599,1777208799840,-345.72026394,0.00025291,120]
[421175600,1777208799874,-345.72026394,0.00025291,120]
[421175601,1777208799909,-163.08435974,0.00025291,120]
[421175602,1777208799945,-163.08435974,0.00025291,120]
[421175603,1777208799979,-165.55598906,0.00025291,120]
[421175604,1777208800013,-165.55598906,0.00025291,120]
[421175605,1777208800047,-165.55598906,0.00025291,120]
[421175606,1777208800081,-165.55598906,0.00025291,120]
[421175607,1777208800114,-165.55598906,0.00025291,120]
[421175608,1777208800148,-165.55598906,0.00025291,120]
[421175609,1777208800181,-165.55598906,0.00025291,120]
[421175610,1777208800214,-165.55598906,0.00025291,120]
[421175611,1777208800248,-250.95393086,0.00025291,120]
[421175612,1777208800282,-177.51539291,0.00025291,120]
[421175613,1777208800315,-177.51539291,0.00025291,120]
[421175614,1777208800349,-177.5153929,0.00025291,120]
[421175615,1777208800383,-315.64107669,0.00025291,120]
[421175616,1777208800416,-515.51519695,0.00025291,120]
[421175617,1777208800450,-381.87455555,0.00025291,120]
[421175625,1777208800933,-315.64107669,0.00025291,120]
[421175626,1777208800973,-515.51519695,0.00025291,120]
[421175627,1777208801006,-381.87455555,0.00025291,120]
[421175628,1777208801038,-515.51519695,0.00025291,120]
[421175629,1777208801069,-315.64107669,0.00025291,120]
[421175630,1777208801100,-381.87455555,0.00025291,120]
[421175631,1777208801133,-515.51519695,0.00025291,120]
[421175632,1777208801164,-515.51519695,0.00025291,120]
[421175633,1777208801196,-515.51519695,0.00025291,120]
[421175634,1777208801227,-515.51519695,0.00025291,120]
[421175635,1777208801258,-515.51519695,0.00025291,120]
[421175636,1777208801296,-515.51519695,0.00025291,120]
[421175637,1777208801326,-515.51519695,0.00025291,120]
[421175638,1777208801357,-515.51519695,0.00025291,120]
[421175639,1777208801387,-515.51519695,0.00025291,120]
[421175640,1777208801416,-515.51519695,0.00025291,120]
[421175641,1777208801447,-515.51519695,0.00025291,120]
[421175642,1777208801478,-171.83839898,0.00025291,120]
[421175643,1777208801509,-171.83839898,0.00025291,120]
[421175644,1777208801539,-171.83839898,0.00025291,120]
[421175645,1777208801571,-500.0,0.00025291,120]
[421175646,1777208801601,-157.08807311,0.00025291,120]
[421175647,1777208801630,-1523.97748496,0.00025291,120]